[Event "*** SCC Grand Prix: Titled Tuesday Blitz"]
[Site "Chess.com"]
[Date "2020.07.14"]
[Round "10"]
[White "GMHess"]
[Black "kirillshevchenko"]
[Result "1-0"]
[WhiteElo "2783"]
[BlackElo "2922"]
[TimeControl "180+1"]
[EndTime "11:59:01 PDT"]
[Termination "GMHess won by checkmate"]

1. d4 {[%clk 0:03:00.9]} 1... Nf6 {[%clk 0:02:59.6]} 2. c4 {[%clk 0:03:01.5]}
2... g6 {[%clk 0:03:00.1]} 3. Nc3 {[%clk 0:03:01.9]} 3... Bg7 {[%clk 0:03:00.7]}
4. e4 {[%clk 0:03:01.3]} 4... d6 {[%clk 0:03:01.3]} 5. f3 {[%clk 0:02:59.8]}
5... O-O {[%clk 0:03:01.3]} 6. Nge2 {[%clk 0:03:00.4]} 6... e5 {[%clk
0:02:58.9]} 7. Be3 {[%clk 0:02:57.2]} 7... Nbd7 {[%clk 0:02:57]} 8. d5 {[%clk
0:02:49.4]} 8... h5 {[%clk 0:02:56.7]} 9. Qd2 {[%clk 0:02:43.9]} 9... Nh7 {[%clk
0:02:52.8]} 10. O-O-O {[%clk 0:02:40.6]} 10... f5 {[%clk 0:02:49.7]} 11. exf5
{[%clk 0:02:41]} 11... gxf5 {[%clk 0:02:49.5]} 12. f4 {[%clk 0:02:35.6]} 12...
Nhf6 {[%clk 0:02:34.6]} 13. Ng3 {[%clk 0:02:32.2]} 13... Nb6 {[%clk 0:02:32]}
14. fxe5 {[%clk 0:02:21.6]} 14... dxe5 {[%clk 0:02:31]} 15. c5 {[%clk
0:02:17.3]} 15... f4 {[%clk 0:02:30.1]} 16. cxb6 {[%clk 0:02:12.2]} 16... fxe3
{[%clk 0:02:18.5]} 17. Qxe3 {[%clk 0:02:13.1]} 17... Ng4 {[%clk 0:02:18.6]} 18.
bxc7 {[%clk 0:02:03.3]} 18... Qxc7 {[%clk 0:02:14.2]} 19. Qg5 {[%clk 0:02:00.1]}
19... Nf2 {[%clk 0:01:20.7]} 20. d6 {[%clk 0:01:36.7]} 20... Qf7 {[%clk
0:01:19.9]} 21. Nxh5 {[%clk 0:01:31.6]} 21... Be6 {[%clk 0:01:02]} 22. Bb5
{[%clk 0:01:01.5]} 22... Kh7 {[%clk 0:00:46]} 23. Nxg7 {[%clk 0:00:47.4]} 23...
Qxg7 {[%clk 0:00:46.5]} 24. Qe7 {[%clk 0:00:37.3]} 24... Bf7 {[%clk 0:00:38.2]}
25. Rhf1 {[%clk 0:00:25.2]} 25... Nxd1 {[%clk 0:00:36.2]} 26. Rxd1 {[%clk
0:00:19]} 26... a6 {[%clk 0:00:25.8]} 27. Bd3+ {[%clk 0:00:18.2]} 27... Bg6
{[%clk 0:00:26.3]} 28. Qh4+ {[%clk 0:00:08.7]} 28... Kg8 {[%clk 0:00:25.8]} 29.
Bc4+ {[%clk 0:00:05.9]} 29... Bf7 {[%clk 0:00:26.2]} 30. Nd5 {[%clk 0:00:05.3]}
30... Rfe8 {[%clk 0:00:05.1]} 31. Nf6+ {[%clk 0:00:04.9]} 31... Kf8 {[%clk
0:00:04.9]} 32. Nd7+ {[%clk 0:00:03.4]} 32... Kg8 {[%clk 0:00:04.7]} 33. Nf6+
{[%clk 0:00:04.3]} 33... Kf8 {[%clk 0:00:05.3]} 34. Rf1 {[%clk 0:00:04.3]} 34...
Bxc4 {[%clk 0:00:04]} 35. Nxe8+ {[%clk 0:00:04.3]} 35... Kxe8 {[%clk 0:00:04.1]}
36. Qxc4 {[%clk 0:00:04.2]} 36... Qh6+ {[%clk 0:00:04.2]} 37. Kb1 {[%clk
0:00:04.1]} 37... Qg6+ {[%clk 0:00:03.9]} 38. Ka1 {[%clk 0:00:03.8]} 38... Rd8
{[%clk 0:00:04.4]} 39. Qc7 {[%clk 0:00:03]} 39... Rd7 {[%clk 0:00:03.5]} 40.
Qc8+ {[%clk 0:00:03.4]} 40... Rd8 {[%clk 0:00:04]} 41. Qxb7 {[%clk 0:00:04.1]}
41... Qe6 {[%clk 0:00:03.9]} 42. Qg7 {[%clk 0:00:03.8]} 42... Qxd6 {[%clk
0:00:01.5]} 43. Qf7# {[%clk 0:00:04]} 1-0

[Event "*** SCC Grand Prix: Titled Tuesday Blitz"]
[Site "Chess.com"]
[Date "2020.07.14"]
[Round "10"]
[White "abykhovsky"]
[Black "BillieKimbah"]
[Result "0-1"]
[WhiteElo "2720"]
[BlackElo "2893"]
[TimeControl "180+1"]
[EndTime "11:59:01 PDT"]
[Termination "BillieKimbah won by resignation"]

1. d4 {[%clk 0:03:00.9]} 1... d5 {[%clk 0:02:59.7]} 2. Nf3 {[%clk 0:03:00.1]}
2... Nf6 {[%clk 0:02:59.4]} 3. c4 {[%clk 0:03:01]} 3... c6 {[%clk 0:02:57.3]} 4.
Nc3 {[%clk 0:03:00.8]} 4... e6 {[%clk 0:02:54.7]} 5. Bg5 {[%clk 0:03:00.1]} 5...
h6 {[%clk 0:02:52.7]} 6. Bxf6 {[%clk 0:02:59.3]} 6... Qxf6 {[%clk 0:02:53.6]} 7.
g3 {[%clk 0:02:59.9]} 7... Nd7 {[%clk 0:02:52.2]} 8. Bg2 {[%clk 0:03:00.8]} 8...
Qd8 {[%clk 0:02:48.5]} 9. O-O {[%clk 0:03:01.7]} 9... Be7 {[%clk 0:02:48.7]} 10.
Qb3 {[%clk 0:02:54.7]} 10... O-O {[%clk 0:02:47.7]} 11. e4 {[%clk 0:02:54.2]}
11... Nb6 {[%clk 0:02:43.6]} 12. c5 {[%clk 0:02:51.1]} 12... Nd7 {[%clk
0:02:36.9]} 13. Qa4 {[%clk 0:02:39.8]} 13... Qc7 {[%clk 0:02:32.5]} 14. Rfe1
{[%clk 0:02:38.6]} 14... Bf6 {[%clk 0:02:31.4]} 15. b4 {[%clk 0:02:33.9]} 15...
b6 {[%clk 0:02:26.3]} 16. Rac1 {[%clk 0:02:23.1]} 16... Bb7 {[%clk 0:02:21.1]}
17. Qb3 {[%clk 0:01:48]} 17... Rfb8 {[%clk 0:02:15.1]} 18. a3 {[%clk 0:01:34.1]}
18... bxc5 {[%clk 0:02:01.2]} 19. bxc5 {[%clk 0:01:27.9]} 19... Ba6 {[%clk
0:02:00]} 20. Qa4 {[%clk 0:01:25.5]} 20... Bd3 {[%clk 0:01:59.9]} 21. Re3 {[%clk
0:01:12.8]} 21... Bxe4 {[%clk 0:01:28.5]} 22. Nxe4 {[%clk 0:01:11]} 22... dxe4
{[%clk 0:01:29.4]} 23. Rxe4 {[%clk 0:01:11.5]} 23... Rb2 {[%clk 0:01:28.7]} 24.
Ree1 {[%clk 0:00:57.5]} 24... Rab8 {[%clk 0:01:28.5]} 25. Rcd1 {[%clk 0:00:56]}
25... R8b5 {[%clk 0:01:23.8]} 26. Bf1 {[%clk 0:00:50.3]} 26... Ra5 {[%clk
0:01:22.5]} 27. Qc4 {[%clk 0:00:49.6]} 27... Rxa3 {[%clk 0:01:22.8]} 28. Bd3
{[%clk 0:00:45.1]} 28... a5 {[%clk 0:01:21.7]} 29. Rb1 {[%clk 0:00:44.1]} 29...
Raa2 {[%clk 0:01:14.9]} 30. Rxb2 {[%clk 0:00:42]} 30... Rxb2 {[%clk 0:01:15.8]}
31. Qc3 {[%clk 0:00:41.6]} 31... Rb4 {[%clk 0:01:14.4]} 32. Bc2 {[%clk
0:00:39.2]} 32... Qb8 {[%clk 0:01:01.2]} 33. Qd3 {[%clk 0:00:37.6]} 33... g6
{[%clk 0:01:01.2]} 34. h4 {[%clk 0:00:35.8]} 34... h5 {[%clk 0:01:01.3]} 35. Kg2
{[%clk 0:00:26.8]} 35... Bg7 {[%clk 0:01:00.9]} 36. Qa3 {[%clk 0:00:22.7]} 36...
Bxd4 {[%clk 0:00:58]} 37. Nxd4 {[%clk 0:00:20.3]} 37... Rxd4 {[%clk 0:00:57.7]}
38. Qxa5 {[%clk 0:00:21.2]} 38... Qf8 {[%clk 0:00:53]} 39. Be4 {[%clk
0:00:19.7]} 39... Ne5 {[%clk 0:00:43]} 40. Qc3 {[%clk 0:00:17.6]} 40... Qd8
{[%clk 0:00:42.6]} 41. Re2 {[%clk 0:00:15.2]} 41... Qd7 {[%clk 0:00:39.1]} 42.
Qb2 {[%clk 0:00:14.3]} 42... Ng4 {[%clk 0:00:35.9]} 43. Qb8+ {[%clk 0:00:13.7]}
43... Kg7 {[%clk 0:00:36]} 44. Qa8 {[%clk 0:00:14]} 44... Ne5 {[%clk 0:00:34.2]}
45. Qb8 {[%clk 0:00:13.6]} 45... Ng4 {[%clk 0:00:19]} 46. Qb6 {[%clk 0:00:13.3]}
46... Rd2 {[%clk 0:00:18.3]} 47. Bxc6 {[%clk 0:00:12.6]} 47... Qd4 {[%clk
0:00:17.8]} 0-1

[Event "*** SCC Grand Prix: Titled Tuesday Blitz"]
[Site "Chess.com"]
[Date "2020.07.14"]
[Round "10"]
[White "kasparicy"]
[Black "boasovietica"]
[Result "1-0"]
[WhiteElo "2334"]
[BlackElo "2460"]
[TimeControl "180+1"]
[EndTime "11:59:01 PDT"]
[Termination "kasparicy won by resignation"]

1. e4 {[%clk 0:03:00.9]} 1... e5 {[%clk 0:02:58.7]} 2. Nf3 {[%clk 0:03:00.4]}
2... Nc6 {[%clk 0:02:57.1]} 3. Bc4 {[%clk 0:02:59.6]} 3... Bc5 {[%clk
0:02:56.2]} 4. c3 {[%clk 0:02:59.8]} 4... Nf6 {[%clk 0:02:55.8]} 5. d3 {[%clk
0:03:00.3]} 5... a6 {[%clk 0:02:55.4]} 6. Bb3 {[%clk 0:03:00.2]} 6... Ba7 {[%clk
0:02:55.7]} 7. Nbd2 {[%clk 0:02:59.9]} 7... d6 {[%clk 0:02:53.9]} 8. h3 {[%clk
0:03:00.3]} 8... h6 {[%clk 0:02:53.6]} 9. Nf1 {[%clk 0:03:00.2]} 9... Ne7 {[%clk
0:02:50.7]} 10. Ng3 {[%clk 0:02:50]} 10... O-O {[%clk 0:02:44.3]} 11. Nh4 {[%clk
0:02:40.8]} 11... d5 {[%clk 0:02:28.7]} 12. Qf3 {[%clk 0:02:39.5]} 12... Nh7
{[%clk 0:02:25.7]} 13. Bd2 {[%clk 0:02:14.1]} 13... Be6 {[%clk 0:02:19.8]} 14.
O-O-O {[%clk 0:02:11.1]} 14... d4 {[%clk 0:02:06.8]} 15. Nhf5 {[%clk 0:02:03.7]}
15... Nxf5 {[%clk 0:01:58.9]} 16. Nxf5 {[%clk 0:02:04.6]} 16... Bxb3 {[%clk
0:01:56.4]} 17. axb3 {[%clk 0:02:04]} 17... Qf6 {[%clk 0:01:42.5]} 18. Qg3
{[%clk 0:01:58.9]} 18... Kh8 {[%clk 0:01:38.3]} 19. f4 {[%clk 0:01:57.6]} 19...
exf4 {[%clk 0:01:31.2]} 20. Bxf4 {[%clk 0:01:57.1]} 20... Rfe8 {[%clk 0:01:21]}
21. c4 {[%clk 0:01:51.5]} 21... Ng5 {[%clk 0:01:10.8]} 22. Rdf1 {[%clk
0:01:49.8]} 22... Ne6 {[%clk 0:01:10.7]} 23. Bd2 {[%clk 0:01:37.4]} 23... Qg6
{[%clk 0:01:09]} 24. Qf2 {[%clk 0:01:31.5]} 24... b5 {[%clk 0:01:06.1]} 25. g4
{[%clk 0:01:28.3]} 25... bxc4 {[%clk 0:01:05.3]} 26. bxc4 {[%clk 0:01:26.9]}
26... Rab8 {[%clk 0:01:03.4]} 27. Nh4 {[%clk 0:01:23.8]} 27... Qf6 {[%clk
0:00:44.6]} 28. Qxf6 {[%clk 0:01:23.6]} 28... gxf6 {[%clk 0:00:44.6]} 29. Rxf6
{[%clk 0:01:23.2]} 29... Nc5 {[%clk 0:00:43.2]} 30. Kc2 {[%clk 0:01:19.4]} 30...
Rb3 {[%clk 0:00:40.4]} 31. Rxf7 {[%clk 0:01:11]} 31... Reb8 {[%clk 0:00:39.9]}
32. Bc1 {[%clk 0:00:58.6]} 32... Nxd3 {[%clk 0:00:35.9]} 33. Rhf1 {[%clk
0:00:49.7]} 33... Nxc1 {[%clk 0:00:33.6]} 34. Ng6+ {[%clk 0:00:49.6]} 34... Kg8
{[%clk 0:00:33.3]} 35. Ne7+ {[%clk 0:00:49.7]} 35... Kh8 {[%clk 0:00:33]} 36.
Kxc1 {[%clk 0:00:40.5]} 36... Rxb2 {[%clk 0:00:31]} 37. Rf8+ {[%clk 0:00:40.3]}
37... Rxf8 {[%clk 0:00:28.2]} 38. Rxf8+ {[%clk 0:00:41.2]} 38... Kg7 {[%clk
0:00:28.7]} 39. Rg8+ {[%clk 0:00:39.8]} 39... Kf7 {[%clk 0:00:28.4]} 40. Kxb2
{[%clk 0:00:40]} 40... Kxe7 {[%clk 0:00:18.4]} 41. Rg7+ {[%clk 0:00:39.4]} 41...
Kd6 {[%clk 0:00:18]} 42. Rg6+ {[%clk 0:00:39.3]} 42... Kc5 {[%clk 0:00:13.4]}
43. Rxa6 {[%clk 0:00:40.2]} 43... Bb6 {[%clk 0:00:13.4]} 44. Kb3 {[%clk
0:00:38.1]} 44... d3 {[%clk 0:00:11.9]} 45. Kc3 {[%clk 0:00:37.9]} 45... d2
{[%clk 0:00:12.4]} 46. Kxd2 {[%clk 0:00:38.3]} 46... Kxc4 {[%clk 0:00:13.3]} 47.
h4 {[%clk 0:00:34.4]} 47... Kd4 {[%clk 0:00:13.3]} 48. Ra4+ {[%clk 0:00:31.1]}
48... Ke5 {[%clk 0:00:13.6]} 49. g5 {[%clk 0:00:30.3]} 49... hxg5 {[%clk
0:00:13.4]} 50. hxg5 {[%clk 0:00:31.2]} 50... Bc5 {[%clk 0:00:11]} 51. Ra5
{[%clk 0:00:28.6]} 1-0

[Event "*** SCC Grand Prix: Titled Tuesday Blitz"]
[Site "Chess.com"]
[Date "2020.07.14"]
[Round "10"]
[White "QuintilianoR"]
[Black "bazar-wokzal"]
[Result "1/2-1/2"]
[WhiteElo "2647"]
[BlackElo "2473"]
[TimeControl "180+1"]
[EndTime "11:59:03 PDT"]
[Termination "Game drawn by repetition"]

1. Nf3 {[%clk 0:03:00.9]} 1... c5 {[%clk 0:02:58.7]} 2. e4 {[%clk 0:02:59.6]}
2... d6 {[%clk 0:02:58.4]} 3. d4 {[%clk 0:02:58.3]} 3... cxd4 {[%clk 0:02:58.6]}
4. Nxd4 {[%clk 0:02:59.2]} 4... Nf6 {[%clk 0:02:58.5]} 5. Nc3 {[%clk 0:02:59.4]}
5... g6 {[%clk 0:02:58.7]} 6. Be3 {[%clk 0:02:59.5]} 6... Bg7 {[%clk 0:02:59]}
7. Be2 {[%clk 0:02:59.6]} 7... O-O {[%clk 0:02:58.1]} 8. Qd2 {[%clk 0:02:59.8]}
8... Nc6 {[%clk 0:02:57.1]} 9. O-O-O {[%clk 0:02:59.6]} 9... Ng4 {[%clk
0:02:51.6]} 10. Bxg4 {[%clk 0:02:58.9]} 10... Bxg4 {[%clk 0:02:50.9]} 11. f3
{[%clk 0:02:59.5]} 11... Be6 {[%clk 0:02:44]} 12. Nxe6 {[%clk 0:02:53.1]} 12...
fxe6 {[%clk 0:02:43.8]} 13. Kb1 {[%clk 0:02:53.1]} 13... Qa5 {[%clk 0:02:41.9]}
14. Ne2 {[%clk 0:02:51.1]} 14... Qxd2 {[%clk 0:02:34.7]} 15. Rxd2 {[%clk
0:02:52]} 15... Rac8 {[%clk 0:02:24]} 16. Re1 {[%clk 0:02:43.7]} 16... a6 {[%clk
0:02:22.9]} 17. Nf4 {[%clk 0:02:36.2]} 17... Kf7 {[%clk 0:02:22.1]} 18. Rdd1
{[%clk 0:02:20.8]} 18... Nb4 {[%clk 0:02:11.8]} 19. Re2 {[%clk 0:02:02.2]} 19...
Rc7 {[%clk 0:02:08.2]} 20. c3 {[%clk 0:01:51.1]} 20... Nc6 {[%clk 0:02:07.4]}
21. Bb6 {[%clk 0:01:50.9]} 21... Rcc8 {[%clk 0:02:07]} 22. Nh3 {[%clk
0:01:41.7]} 22... h6 {[%clk 0:02:04.1]} 23. Nf4 {[%clk 0:01:39.7]} 23... Be5
{[%clk 0:02:00.1]} 24. Nd3 {[%clk 0:01:36.8]} 24... Bxh2 {[%clk 0:01:49.1]} 25.
Rh1 {[%clk 0:01:35.3]} 25... Be5 {[%clk 0:01:48.5]} 26. Rxh6 {[%clk 0:01:34.2]}
26... Rh8 {[%clk 0:01:47.9]} 27. Nxe5+ {[%clk 0:01:28.9]} 27... Nxe5 {[%clk
0:01:43.5]} 28. Rxh8 {[%clk 0:01:28.9]} 28... Rxh8 {[%clk 0:01:42.5]} 29. Bd4
{[%clk 0:01:28.7]} 29... Rh1+ {[%clk 0:01:38.3]} 30. Kc2 {[%clk 0:01:28.5]}
30... Nc6 {[%clk 0:01:32.5]} 31. Bf2 {[%clk 0:01:27.9]} 31... e5 {[%clk
0:01:28.7]} 32. Be3 {[%clk 0:01:25.5]} 32... Nd8 {[%clk 0:01:25.1]} 33. b4
{[%clk 0:01:19.9]} 33... Ne6 {[%clk 0:01:24.9]} 34. a4 {[%clk 0:01:19.5]} 34...
g5 {[%clk 0:01:18.4]} 35. Kb3 {[%clk 0:01:16.8]} 35... Nf4 {[%clk 0:01:17.5]}
36. Bxf4 {[%clk 0:01:14.8]} 36... exf4 {[%clk 0:01:11.5]} 37. Kc4 {[%clk
0:00:59.5]} 37... Ke6 {[%clk 0:01:11.2]} 38. Rd2 {[%clk 0:00:57]} 38... Rh2
{[%clk 0:01:09.1]} 39. a5 {[%clk 0:00:54.8]} 39... g4 {[%clk 0:01:05.5]} 40.
fxg4 {[%clk 0:00:45.3]} 40... f3 {[%clk 0:01:05]} 41. Rd3 {[%clk 0:00:45.4]}
41... f2 {[%clk 0:00:59.1]} 42. Rf3 {[%clk 0:00:45.3]} 42... Rxg2 {[%clk
0:00:59.1]} 43. Kd4 {[%clk 0:00:45.4]} 43... Kd7 {[%clk 0:00:46.3]} 44. Ke3
{[%clk 0:00:41.6]} 44... Rxg4 {[%clk 0:00:35.8]} 45. Rxf2 {[%clk 0:00:41.2]}
45... Kc6 {[%clk 0:00:35.9]} 46. Rf5 {[%clk 0:00:37.7]} 46... e6 {[%clk
0:00:29]} 47. Rf6 {[%clk 0:00:27]} 47... Rg3+ {[%clk 0:00:24.4]} 48. Kd2 {[%clk
0:00:26.8]} 48... e5 {[%clk 0:00:20.5]} 49. Rh6 {[%clk 0:00:20.9]} 49... Rf3
{[%clk 0:00:20.1]} 50. Rg6 {[%clk 0:00:20.5]} 50... Rh3 {[%clk 0:00:19.8]} 51.
Rf6 {[%clk 0:00:20.4]} 51... Rg3 {[%clk 0:00:19.7]} 52. Rh6 {[%clk 0:00:20.5]}
52... Rf3 {[%clk 0:00:19.8]} 53. Rg6 {[%clk 0:00:20.7]} 53... Rh3 {[%clk
0:00:19.9]} 54. Rf6 {[%clk 0:00:20.8]} 54... Rg3 {[%clk 0:00:20]} 1/2-1/2

[Event "*** SCC Grand Prix: Titled Tuesday Blitz"]
[Site "Chess.com"]
[Date "2020.07.14"]
[Round "10"]
[White "GustavoJuarezF"]
[Black "GuuBol"]
[Result "0-1"]
[WhiteElo "2013"]
[BlackElo "2240"]
[TimeControl "180+1"]
[EndTime "11:59:04 PDT"]
[Termination "GuuBol won on time"]

1. e4 {[%clk 0:03:00.9]} 1... c5 {[%clk 0:03:00.2]} 2. Nc3 {[%clk 0:02:58.9]}
2... d6 {[%clk 0:02:57.3]} 3. g3 {[%clk 0:02:59]} 3... g6 {[%clk 0:02:54.9]} 4.
Bg2 {[%clk 0:02:58.9]} 4... Bg7 {[%clk 0:02:55.1]} 5. Nge2 {[%clk 0:02:58.5]}
5... Nc6 {[%clk 0:02:52.8]} 6. d3 {[%clk 0:02:57.3]} 6... Rb8 {[%clk 0:02:52.5]}
7. Be3 {[%clk 0:02:56.5]} 7... b5 {[%clk 0:02:52.4]} 8. Qd2 {[%clk 0:02:53.5]}
8... b4 {[%clk 0:02:47.4]} 9. Nd1 {[%clk 0:02:52.6]} 9... Nd4 {[%clk 0:02:47.1]}
10. c3 {[%clk 0:02:46.8]} 10... bxc3 {[%clk 0:02:39.9]} 11. bxc3 {[%clk
0:02:45]} 11... Bh3 {[%clk 0:02:32.9]} 12. O-O {[%clk 0:02:38.2]} 12... Bxg2
{[%clk 0:02:31]} 13. Kxg2 {[%clk 0:02:37.9]} 13... Nc6 {[%clk 0:02:25.9]} 14. d4
{[%clk 0:02:35.8]} 14... cxd4 {[%clk 0:02:24.3]} 15. cxd4 {[%clk 0:02:35.2]}
15... Nf6 {[%clk 0:02:22.2]} 16. Ndc3 {[%clk 0:02:33.8]} 16... O-O {[%clk
0:02:20]} 17. h3 {[%clk 0:02:33.3]} 17... Qa5 {[%clk 0:02:17.9]} 18. Rfd1 {[%clk
0:02:23.6]} 18... Rb7 {[%clk 0:02:12.1]} 19. g4 {[%clk 0:02:15.6]} 19... Rfb8
{[%clk 0:02:10.1]} 20. d5 {[%clk 0:01:51.4]} 20... Rb2 {[%clk 0:01:58.3]} 21.
Qe1 {[%clk 0:01:41.5]} 21... Nb4 {[%clk 0:01:53.9]} 22. Rdc1 {[%clk 0:01:05.8]}
22... Nc2 {[%clk 0:01:52.8]} 23. Rxc2 {[%clk 0:01:03]} 23... Rxc2 {[%clk
0:01:51.8]} 24. Nd4 {[%clk 0:00:58.8]} 24... Rxc3 {[%clk 0:01:29.4]} 25. Bd2
{[%clk 0:00:57.8]} 25... Rbc8 {[%clk 0:01:26.2]} 26. Nc6 {[%clk 0:00:57.8]}
26... Qc7 {[%clk 0:01:07.3]} 27. Bxc3 {[%clk 0:00:55.1]} 27... Nxd5 {[%clk
0:01:05.8]} 28. exd5 {[%clk 0:00:51]} 28... Bxc3 {[%clk 0:01:05.4]} 29. Qxc3
{[%clk 0:00:50.4]} 29... e5 {[%clk 0:01:04.7]} 30. Rc1 {[%clk 0:00:49.1]} 30...
Re8 {[%clk 0:01:03.4]} 31. Qd2 {[%clk 0:00:44.6]} 31... Qb6 {[%clk 0:01:01.3]}
32. a4 {[%clk 0:00:41.1]} 32... Kg7 {[%clk 0:00:57.5]} 33. a5 {[%clk 0:00:41.2]}
33... Qa6 {[%clk 0:00:53.7]} 34. Qc3 {[%clk 0:00:39.5]} 34... f5 {[%clk
0:00:51.2]} 35. Qc4 {[%clk 0:00:37.9]} 35... Qb7 {[%clk 0:00:50.4]} 36. a6
{[%clk 0:00:35.6]} 36... Qb2 {[%clk 0:00:49.6]} 37. gxf5 {[%clk 0:00:34]} 37...
gxf5 {[%clk 0:00:49.6]} 38. Rc2 {[%clk 0:00:32.4]} 38... Qa1 {[%clk 0:00:48.4]}
39. Qh4 {[%clk 0:00:25.2]} 39... Rg8 {[%clk 0:00:45.2]} 40. Kh2 {[%clk
0:00:18.2]} 40... Qd1 {[%clk 0:00:31]} 41. Nxe5 {[%clk 0:00:14.4]} 41... Qxc2
{[%clk 0:00:23.7]} 42. Qe7+ {[%clk 0:00:12.6]} 42... Kh6 {[%clk 0:00:21.5]} 43.
Qf6+ {[%clk 0:00:10.9]} 43... Rg6 {[%clk 0:00:20.5]} 44. Nf7+ {[%clk 0:00:10.6]}
44... Kh5 {[%clk 0:00:20.5]} 45. Qd4 {[%clk 0:00:03.9]} 45... Qe2 {[%clk
0:00:18.2]} 46. Qf4 {[%clk 0:00:01.7]} 46... Qd1 {[%clk 0:00:10.8]} 0-1

[Event "*** SCC Grand Prix: Titled Tuesday Blitz"]
[Site "Chess.com"]
[Date "2020.07.14"]
[Round "10"]
[White "VMikhalevski"]
[Black "Fandorine"]
[Result "0-1"]
[WhiteElo "2801"]
[BlackElo "2953"]
[TimeControl "180+1"]
[EndTime "11:59:05 PDT"]
[Termination "Fandorine won on time"]

1. d4 {[%clk 0:03:00.9]} 1... Nf6 {[%clk 0:02:58.8]} 2. Nf3 {[%clk 0:03:00.9]}
2... g6 {[%clk 0:02:59.2]} 3. g3 {[%clk 0:03:00.5]} 3... Bg7 {[%clk 0:02:58.9]}
4. Bg2 {[%clk 0:03:01.1]} 4... O-O {[%clk 0:02:59.8]} 5. O-O {[%clk 0:03:00.8]}
5... d6 {[%clk 0:03:00.7]} 6. b3 {[%clk 0:03:00.7]} 6... e5 {[%clk 0:02:56.9]}
7. dxe5 {[%clk 0:02:59.7]} 7... dxe5 {[%clk 0:02:57.8]} 8. Ba3 {[%clk
0:02:59.7]} 8... e4 {[%clk 0:02:58.3]} 9. Bxf8 {[%clk 0:02:49.7]} 9... Qxf8
{[%clk 0:02:59.2]} 10. Nd4 {[%clk 0:02:47.9]} 10... e3 {[%clk 0:02:59.5]} 11.
Nc3 {[%clk 0:02:41]} 11... Ng4 {[%clk 0:02:32.6]} 12. fxe3 {[%clk 0:02:21.8]}
12... Nxe3 {[%clk 0:02:32.4]} 13. Qd3 {[%clk 0:02:22.4]} 13... Nxf1 {[%clk
0:02:31.7]} 14. Rxf1 {[%clk 0:02:21.5]} 14... c5 {[%clk 0:02:20.6]} 15. Ndb5
{[%clk 0:02:17.8]} 15... Nc6 {[%clk 0:02:21.1]} 16. Nd5 {[%clk 0:02:04.7]} 16...
a6 {[%clk 0:01:39.9]} 17. Nbc7 {[%clk 0:01:59.7]} 17... Rb8 {[%clk 0:01:40]} 18.
Nf6+ {[%clk 0:01:55]} 18... Kh8 {[%clk 0:01:32.8]} 19. Nce8 {[%clk 0:01:47.5]}
19... Be6 {[%clk 0:01:07.9]} 20. Bxc6 {[%clk 0:01:36.4]} 20... bxc6 {[%clk
0:01:06.6]} 21. Nc7 {[%clk 0:01:23.6]} 21... Qe7 {[%clk 0:00:54.6]} 22. Nxe6
{[%clk 0:01:16]} 22... Qxe6 {[%clk 0:00:29.8]} 23. Qf3 {[%clk 0:00:43.7]} 23...
c4 {[%clk 0:00:23.6]} 24. g4 {[%clk 0:00:36.6]} 24... cxb3 {[%clk 0:00:19.9]}
25. axb3 {[%clk 0:00:35.7]} 25... h6 {[%clk 0:00:20.1]} 26. Ne4 {[%clk
0:00:29.3]} 26... Re8 {[%clk 0:00:16.7]} 27. Ng3 {[%clk 0:00:29.1]} 27... Kg8
{[%clk 0:00:16.3]} 28. Rd1 {[%clk 0:00:26.3]} 28... a5 {[%clk 0:00:16.1]} 29.
Kf1 {[%clk 0:00:23.9]} 29... Be5 {[%clk 0:00:15.2]} 30. Rd3 {[%clk 0:00:21.6]}
30... Bg7 {[%clk 0:00:12.1]} 31. h3 {[%clk 0:00:16]} 31... Ra8 {[%clk
0:00:06.5]} 32. Ne4 {[%clk 0:00:14.7]} 32... Qe7 {[%clk 0:00:05.8]} 33. Nd2
{[%clk 0:00:11.6]} 33... a4 {[%clk 0:00:05.7]} 34. Qxc6 {[%clk 0:00:11.3]} 34...
Re8 {[%clk 0:00:05]} 35. Qf3 {[%clk 0:00:06.4]} 35... a3 {[%clk 0:00:05.3]} 36.
b4 {[%clk 0:00:03.8]} 36... a2 {[%clk 0:00:05.5]} 37. Ra3 {[%clk 0:00:04.1]}
37... a1=Q+ {[%clk 0:00:04.4]} 38. Rxa1 {[%clk 0:00:04.8]} 38... Bxa1 {[%clk
0:00:04.8]} 39. c3 {[%clk 0:00:05.3]} 39... Bxc3 {[%clk 0:00:03.9]} 40. Qxc3
{[%clk 0:00:02]} 40... Qxe2+ {[%clk 0:00:04.3]} 41. Kg1 {[%clk 0:00:02.1]} 41...
Qe1+ {[%clk 0:00:04.8]} 0-1